fUST/lending_fUST_20250623
["ID","MTS","AMOUNT","RATE_DAILY","PERIOD"]
[367141015,1750668860306,-460.0,0.00022465,2]
[367141016,1750668860339,-460.0,0.00022465,2]
[367141017,1750668860372,-7926.46,0.00022465,2]
[367141018,1750668860407,-460.0,0.00022465,2]
[367141019,1750668860440,-617.18,0.00022465,2]
[367141020,1750668860474,-460.0,0.00022465,2]
[367141021,1750668860508,-1790.07,0.00022465,2]
[367141022,1750668860543,-460.0,0.00022465,2]
[367141023,1750668860577,-460.0,0.00022465,2]
[367141024,1750668860612,-500.0,0.00022465,2]
[367141025,1750668860647,-460.0,0.00022465,2]
[367141026,1750668860680,-845.01,0.00022465,2]
[367141027,1750668860713,-460.0,0.00022465,2]
[367141028,1750668860748,-460.0,0.00022465,2]
[367141029,1750668860783,-502.73,0.00022465,2]
[367141030,1750668860819,-460.0,0.00022465,2]
[367141031,1750668860853,-500.0,0.00022465,2]
[367141032,1750668860888,-1133.22,0.00022465,2]
[367141033,1750668860922,-460.0,0.00022465,2]
[367141034,1750668860955,-586.0051348,0.00022465,2]
[367141035,1750668860988,-152.01700912,0.00022465,2]
[367141036,1750668861021,-500.2,0.00022465,2]
[367141037,1750668861053,-479.55,0.00022465,2]
[367141038,1750668861086,-460.0,0.00022465,2]
[367141039,1750668861120,-1811.04,0.00022465,2]
[367141040,1750668861153,-958.78,0.00022465,2]
[367141041,1750668861187,-460.0,0.00022465,2]
[367141042,1750668861219,-460.0,0.00022465,2]
[367141043,1750668861252,-439.19538079,0.00022465,2]
[367141044,1750668861285,-203.08908523,0.00022465,2]
[367141045,1750668861316,-881.51,0.00022465,2]
[367141046,1750668861347,-460.0,0.00022465,2]
[367141047,1750668861379,-625.94,0.00022465,2]
[367141048,1750668861411,-1036.85,0.00022465,2]
[367141049,1750668861443,-460.0,0.00022465,2]
[367141050,1750668861475,-460.0,0.00022465,2]
[367141051,1750668861507,-855.07,0.00022465,2]
[367141052,1750668861539,-1527.02,0.00022465,2]
[367141053,1750668861571,-290.77287566,0.00022465,2]
[367141054,1750668861604,-460.0,0.00022465,2]
[367141055,1750668861636,-1371.96,0.00022465,2]
[367141056,1750668861929,-460.0,0.00022465,2]
[367141057,1750668861969,-460.0,0.00022465,2]
[367141058,1750668861996,-2239.41,0.00022465,2]
[367141059,1750668862025,-9200.65,0.00022465,2]
[367141060,1750668862052,-460.0,0.00022465,2]
[367141061,1750668862079,-460.0,0.00022465,2]
[367141062,1750668862106,-710.47,0.00022465,2]
[367141063,1750668862133,-6850.57,0.00022465,2]
[367141064,1750668862160,-550.58,0.00022465,2]
[367141065,1750668862187,-460.0,0.00022465,2]
[367141066,1750668862212,-460.0,0.00022465,2]
[367141067,1750668862239,-460.0,0.00022465,2]
[367141068,1750668862265,-460.0,0.00022465,2]
[367141069,1750668862291,-460.0,0.00022465,2]
[367141070,1750668862318,-1440.61,0.00022465,2]
[367141071,1750668862346,-1141.15,0.00022465,2]
[367141072,1750668862374,-1935.47,0.00022465,2]
[367141073,1750668862402,-460.0,0.00022465,2]
[367141074,1750668862428,-698.86,0.00022465,2]
[367141075,1750668862455,-477.01,0.00022465,2]
[367141076,1750668862483,-460.0,0.00022465,2]
[367141077,1750668862511,-167.29309569,0.00022465,2]
[367141078,1750668862539,-2095.51,0.00022465,2]
[367141079,1750668862566,-649.72,0.00022465,2]
[367141080,1750668862595,-460.0,0.00022465,2]
[367141081,1750668862622,-460.0,0.00022465,2]
[367141082,1750668862651,-460.0,0.00022465,2]
[367141083,1750668862679,-3216.99,0.00022465,2]
[367141084,1750668862708,-764.68,0.00022465,2]
[367141085,1750668862736,-460.0,0.00022465,2]
[367141086,1750668862766,-1044.6,0.00022465,2]
[367141087,1750668862795,-460.0,0.00022465,2]
[367141088,1750668862824,-460.0,0.00022465,2]
[367141089,1750668862851,-460.0,0.00022465,2]
[367141090,1750668862878,-460.0,0.00022465,2]
[367141091,1750668862906,-460.0,0.00022465,2]
[367141092,1750668862935,-460.0,0.00022465,2]
[367141093,1750668862963,-6704.7,0.00022465,2]
[367141094,1750668862989,-748.53,0.00022465,2]
[367141095,1750668863018,-460.0,0.00022465,2]
[367141096,1750668863045,-460.0,0.00022465,2]
[367141097,1750668863074,-460.0,0.00022465,2]
[367141098,1750668863102,-1746.54,0.00022465,2]
[367141099,1750668863130,-828.69,0.00022465,2]
[367141100,1750668863158,-837.85,0.00022465,2]
[367141101,1750668863186,-477.99,0.00022465,2]
[367141102,1750668863215,-500.0,0.00022465,2]
[367141103,1750668863243,-460.0,0.00022465,2]
[367141104,1750668863270,-460.0,0.00022465,2]
[367141105,1750668863296,-460.0,0.00022465,2]
[367141106,1750668863322,-602.47,0.00022465,2]
[367141107,1750668863348,-460.0,0.00022465,2]
[367141108,1750668863376,-460.0,0.00022465,2]
[367141109,1750668863402,-500.0,0.00022465,2]
[367141110,1750668863429,-460.0,0.00022465,2]
[367141111,1750668863455,-5266.75,0.00022465,2]
[367141112,1750668863483,-460.0,0.00022465,2]
[367141113,1750668863510,-460.0,0.00022465,2]
[367141114,1750668863537,-460.0,0.00022465,2]
[367141115,1750668863564,-1600.69,0.00022465,2]
[367141116,1750668863591,-460.0,0.00022465,2]
[367141117,1750668863619,-460.0,0.00022465,2]
[367141118,1750668863646,-1892.11,0.00022465,2]
[367141119,1750668863675,-1319.73,0.00022465,2]
[367141120,1750668863702,-460.0,0.00022465,2]
[367141121,1750668863730,-460.0,0.00022465,2]
[367141122,1750668863758,-7120.27,0.00022465,2]
[367141123,1750668863785,-460.0,0.00022465,2]
[367141124,1750668863813,-460.0,0.00022465,2]
[367141125,1750668863847,-428.65,0.00022465,2]
[367141126,1750668863890,-271.85846419,0.00022465,2]
[367141127,1750668863918,-460.0,0.00022465,2]
[367141128,1750668863945,-460.0,0.00022465,2]
[367141129,1750668863972,-1897.26,0.00022465,2]
[367141130,1750668864000,-6904.54,0.00022465,2]
[367141131,1750668864028,-1282.26,0.00022465,2]
[367141132,1750668864056,-460.0,0.00022465,2]
[367141133,1750668864082,-475.37,0.00022465,2]
[367141134,1750668864112,-460.0,0.00022465,2]
[367141135,1750668864137,-2314.79,0.00022465,2]
[367141136,1750668864164,-505.8,0.00022465,2]
[367141137,1750668864190,-460.0,0.00022465,2]
[367141138,1750668864216,-436.11034395,0.00022465,2]
[367141139,1750668864247,-505.2,0.00022465,2]
[367141140,1750668864274,-460.0,0.00022465,2]
[367141141,1750668864300,-460.0,0.00022465,2]
[367141142,1750668864329,-460.0,0.00022465,2]
[367141143,1750668864355,-460.0,0.00022465,2]
[367141144,1750668864384,-2097.28,0.00022465,2]
[367141145,1750668864412,-1100.47,0.00022465,2]
[367141146,1750668864589,-1054.32,0.00022465,2]
[367141147,1750668864619,-535.95,0.00022465,2]
[367141148,1750668864648,-460.0,0.00022465,2]
[367141149,1750668864678,-1074.69,0.00022465,2]
[367141150,1750668864707,-652.07,0.00022465,2]
[367141151,1750668864737,-460.0,0.00022465,2]
[367141152,1750668864765,-460.0,0.00022465,2]
[367141153,1750668864792,-1231.09,0.00022465,2]
[367141154,1750668864819,-460.0,0.00022465,2]
[367141155,1750668864851,-460.0,0.00022465,2]
[367141156,1750668864880,-6500.87,0.00022465,2]
[367141157,1750668864909,-460.0,0.00022465,2]
[367141158,1750668864937,-750.52,0.00022465,2]
[367141159,1750668864966,-460.0,0.00022465,2]
[367141160,1750668864995,-814.26,0.00022465,2]
[367141161,1750668865024,-460.0,0.00022465,2]
[367141162,1750668865053,-460.0,0.00022465,2]
[367141163,1750668865080,-460.0,0.00022465,2]
[367141164,1750668865107,-460.0,0.00022465,2]
[367141165,1750668865135,-1178.39,0.00022465,2]
[367141166,1750668865161,-460.0,0.00022465,2]
[367141167,1750668865188,-460.0,0.00022465,2]
[367141168,1750668865215,-460.0,0.00022465,2]
[367141169,1750668865242,-460.0,0.00022465,2]
[367141170,1750668865268,-460.0,0.00022465,2]
[367141171,1750668865294,-460.0,0.00022465,2]
[367141172,1750668865321,-460.0,0.00022465,2]
[367141173,1750668865348,-963.76,0.00022465,2]
[367141174,1750668865375,-1651.31,0.00022465,2]
[367141175,1750668865402,-460.0,0.00022465,2]
[367141176,1750668865430,-1168.55,0.00022465,2]
[367141177,1750668865457,-460.0,0.00022465,2]
[367141178,1750668865485,-810.72,0.00022465,2]
[367141179,1750668865514,-506.13,0.00022465,2]
[367141180,1750668865541,-460.0,0.00022465,2]
[367141181,1750668865570,-640.46,0.00022465,2]
[367141182,1750668865597,-460.0,0.00022465,2]
[367141183,1750668865626,-575.26,0.00022465,2]
[367141184,1750668865654,-1312.86,0.00022465,2]
[367141185,1750668865681,-460.0,0.00022465,2]
[367141186,1750668865710,-467.32159034,0.00022465,2]
[367141187,1750668865738,-460.0,0.00022465,2]
[367141188,1750668865767,-584.29,0.00022465,2]
[367141189,1750668865795,-460.0,0.00022465,2]
[367141190,1750668865826,-824.55,0.00022465,2]
[367141191,1750668865856,-460.0,0.00022465,2]
[367141192,1750668865884,-696.35,0.00022465,2]
[367141193,1750668865911,-1432.01,0.00022465,2]
[367141194,1750668865939,-541.43,0.00022465,2]
[367141195,1750668865967,-460.0,0.00022465,2]
[367141196,1750668865992,-460.0,0.00022465,2]
[367141197,1750668866020,-1134.45,0.00022465,2]
[367141198,1750668866047,-1318.97,0.00022465,2]
[367141199,1750668866073,-460.0,0.00022465,2]
[367141200,1750668866098,-460.0,0.00022465,2]
[367141201,1750668866125,-460.0,0.00022465,2]
[367141202,1750668866151,-460.0,0.00022465,2]
[367141203,1750668866177,-1160.72,0.00022465,2]
[367141204,1750668866204,-8624.4,0.00022465,2]
[367141205,1750668866230,-530.06,0.00022465,2]
[367141206,1750668866256,-460.0,0.00022465,2]
[367141207,1750668866281,-356.61855814,0.00022465,2]
[367141208,1750668866311,-727.12,0.00022465,2]
[367141209,1750668866336,-460.0,0.00022465,2]
[367141210,1750668866362,-460.0,0.00022465,2]
[367141211,1750668866388,-460.0,0.00022465,2]
[367141212,1750668866414,-460.0,0.00022465,2]
[367141213,1750668866441,-672.09,0.00022465,2]
[367141214,1750668866469,-3057.12,0.00022465,2]
[367141215,1750668866496,-460.0,0.00022465,2]
[367141216,1750668866523,-460.0,0.00022465,2]
[367141217,1750668866549,-460.0,0.00022465,2]
[367141218,1750668866576,-3812.56,0.00022465,2]
[367141219,1750668866605,-460.0,0.00022465,2]
[367141220,1750668866631,-460.0,0.00022465,2]
[367141221,1750668866658,-460.0,0.00022465,2]
[367141222,1750668866684,-460.0,0.00022465,2]
[367141223,1750668866715,-460.0,0.00022465,2]
[367141224,1750668866742,-627.42,0.00022465,2]
[367141225,1750668866771,-610.84,0.00022465,2]
[367141226,1750668866800,-460.0,0.00022465,2]
[367141227,1750668866828,-796.2,0.00022465,2]
[367141228,1750668866859,-499.96,0.00022465,2]
[367141229,1750668866888,-2473.62,0.00022465,2]
[367141230,1750668866914,-460.0,0.00022465,2]
[367141231,1750668866943,-460.0,0.00022465,2]
[367141232,1750668866972,-1430.76,0.00022465,2]
[367141233,1750668866999,-892.93,0.00022465,2]
[367141234,1750668867026,-460.0,0.00022465,2]
[367141235,1750668867052,-478.89,0.00022465,2]
[367141236,1750668867079,-460.0,0.00022465,2]
[367141237,1750668867107,-460.0,0.00022465,2]
[367141238,1750668867133,-460.0,0.00022465,2]
[367141239,1750668867160,-513.71,0.00022465,2]
[367141240,1750668867371,-5393.99,0.00022465,2]
[367141241,1750668867403,-460.0,0.00022465,2]
[367141242,1750668867432,-460.0,0.00022465,2]
[367141243,1750668867460,-1427.01,0.00022465,2]
[367141244,1750668867488,-1585.98,0.00022465,2]
[367141245,1750668867516,-460.0,0.00022465,2]
[367141246,1750668867543,-460.0,0.00022465,2]
[367141247,1750668867570,-460.0,0.00022465,2]
[367141248,1750668867597,-492.34,0.00022465,2]
[367141249,1750668867625,-3023.47,0.00022465,2]
[367141250,1750668867653,-460.0,0.00022465,2]
[367141251,1750668867681,-460.0,0.00022465,2]
[367141252,1750668867709,-658.2,0.00022465,2]
[367141253,1750668867736,-460.0,0.00022465,2]
[367141254,1750668867762,-2438.96,0.00022465,2]
[367141255,1750668867790,-624.12,0.00022465,2]
[367141256,1750668867816,-1488.85,0.00022465,2]
[367141257,1750668867847,-21969.91,0.00022465,2]
[367141258,1750668867876,-5032.78,0.00022465,2]
[367141259,1750668867903,-460.0,0.00022465,2]
[367141260,1750668867930,-2882.28,0.00022465,2]
[367141261,1750668867956,-460.0,0.00022465,2]
[367141262,1750668867983,-356.79526399,0.00022465,2]
[367141263,1750668868008,-460.0,0.00022465,2]
[367141264,1750668868034,-460.0,0.00022465,2]
[367141265,1750668868061,-460.0,0.00022465,2]
[367141266,1750668868086,-460.0,0.00022465,2]
[367141267,1750668868112,-2876.44,0.00022465,2]
[367141268,1750668868138,-460.0,0.00022465,2]
[367141269,1750668868163,-975.76,0.00022465,2]
[367141270,1750668868189,-460.0,0.00022465,2]
[367141271,1750668868216,-744.21,0.00022465,2]
[367141272,1750668868242,-460.0,0.00022465,2]
[367141273,1750668868268,-1205.15,0.00022465,2]
[367141274,1750668868294,-774.21,0.00022465,2]
[367141275,1750668868320,-1607.5,0.00022465,2]
[367141276,1750668868346,-500.0,0.00022473,2]
[367141277,1750668868372,-500.0,0.00022473,2]
[367141278,1750668868398,-500.0,0.00022473,2]
[367141279,1750668868423,-153.14250998,0.00022473,2]
[367141280,1750668868450,-500.1474136,0.00022473,2]
[367141281,1750668868476,-500.0,0.00022473,2]
[367141282,1750668868503,-500.0,0.00022473,2]
[367141283,1750668868530,-501.0720701,0.00022473,2]
[367141284,1750668868556,-500.0,0.00022473,2]
[367141285,1750668868582,-500.0,0.00022473,2]
[367141286,1750668868609,-500.0,0.00022473,2]
[367141287,1750668868636,-500.0,0.00022473,2]
[367141288,1750668868663,-500.0,0.00022473,2]
[367141289,1750668868692,-500.0,0.00022473,2]
[367141290,1750668868719,-500.35270587,0.00022473,2]
[367141291,1750668868747,-501.0321702,0.00022473,2]
[367141292,1750668868774,-501.00085733,0.00022473,2]
[367141293,1750668868801,-500.0,0.00022473,2]
[367141294,1750668868826,-500.0,0.00022473,2]
[367141295,1750668868853,-500.0,0.00022473,2]
[367141296,1750668868878,-205.94913261,0.00022473,2]
[367141297,1750668868903,-500.63881092,0.00022473,2]
[367141298,1750668868928,-500.92990096,0.00022473,2]
[367141299,1750668868954,-501.36021248,0.00022473,2]
[367141300,1750668868979,-500.93227134,0.00022473,2]
[367141301,1750668869004,-541.27426581,0.00022473,2]
[367141302,1750668869029,-500.0,0.00022473,2]
[367141303,1750668869054,-500.47506104,0.00022473,2]
[367141304,1750668869079,-500.0,0.00022473,2]
[367141305,1750668869105,-500.0,0.00022473,2]
[367141306,1750668869131,-427.49798714,0.00022473,2]
[367141307,1750668869156,-500.0,0.00022473,2]
[367141308,1750668869181,-501.0075154,0.00022473,2]
[367141309,1750668869207,-500.0,0.00022473,2]
[367141310,1750668869235,-912.5496177,0.00022521,2]
[367141311,1750668869264,-1000.0,0.00022521,2]
[367141312,1750668869290,-505.60203517,0.00022521,2]
[367141313,1750668869317,-1000.0,0.00022521,2]
[367141314,1750668869342,-1000.0,0.00022521,2]
[367141315,1750668869368,-1000.0,0.00022521,2]
[367141316,1750668869394,-1000.0,0.00022521,2]
[367141317,1750668869421,-1000.0,0.00022521,2]
[367141318,1750668869447,-1000.0,0.00022521,2]
[367141319,1750668869474,-1000.0,0.00022521,2]
[367141320,1750668869500,-1000.0,0.00022521,2]
[367141321,1750668869527,-786.38381971,0.00022521,2]
[367141322,1750668869553,-1000.0,0.00022521,2]
[367141323,1750668869578,-1000.0,0.00022521,2]
[367141324,1750668869605,-627.1042849,0.00022521,2]
[367141325,1750668869632,-502.2469423,0.00022521,2]
[367141326,1750668869659,-355.19936786,0.00022521,2]
[367141327,1750668869685,-1000.0,0.00022521,2]
[367141328,1750668869711,-466.976012,0.00022547,7]
[367141329,1750668869738,-466.976022,0.00022547,7]
[367141330,1750668869765,-5000.0,0.00022581,2]
[367141331,1750668869791,-6000.0,0.00022612,2]
[367141332,1750668869819,-212.587993,0.000227,7]
[367141333,1750668869849,-212.58799209,0.000227,7]
[367141334,1750668869876,-151.0,0.000227,7]
[367141335,1750668870059,-217.293718,0.000227,7]
[367141336,1750668870087,-217.293711,0.000227,7]
[367141337,1750668870113,-3000.0,0.000227,2]
[367141338,1750668870139,-155.0,0.00022709,2]
[367141339,1750668870165,-3000.0,0.0002271,2]
[367141340,1750668870190,-270.260321,0.00022719,4]
[367141341,1750668870217,-3000.0,0.0002272,2]
[367141342,1750668870243,-500.0,0.00022721,2]
[367141343,1750668870268,-1000.0,0.00022721,2]
[367141344,1750668870294,-3000.0,0.0002273,2]
[367141345,1750668870320,-460.0,0.00022739,2]
[367141346,1750668870346,-530.23,0.00022739,2]
[367141347,1750668870373,-460.0,0.00022739,2]
[367141348,1750668870398,-460.0,0.00022739,2]
[367141349,1750668870425,-460.0,0.00022739,2]
[367141350,1750668870452,-534.11,0.00022739,2]
[367141351,1750668870479,-183.09790103,0.00022739,2]
[367141352,1750668870506,-460.0,0.00022739,2]
[367141353,1750668870534,-460.0,0.00022739,2]
[367141354,1750668870561,-460.0,0.00022739,2]
[367141355,1750668870588,-497.65,0.00022739,2]
[367141356,1750668870615,-572.79,0.00022739,2]
[367141357,1750668870643,-460.0,0.00022739,2]
[367141358,1750668870670,-460.0,0.00022739,2]
[367141359,1750668870696,-460.0,0.00022739,2]
[367141360,1750668870723,-460.0,0.00022739,2]
[367141361,1750668870750,-460.0,0.00022739,2]
[367141362,1750668870779,-460.0,0.00022739,2]
[367141363,1750668870806,-460.0,0.00022739,2]
[367141364,1750668870833,-460.0,0.00022739,2]
[367141365,1750668870862,-460.0,0.00022739,2]
[367141366,1750668870890,-921.68,0.00022739,2]
[367141367,1750668870917,-460.0,0.00022739,2]
[367141368,1750668870944,-460.0,0.00022739,2]
[367141369,1750668870971,-461.79525168,0.00022739,2]
[367141370,1750668870999,-731.54,0.00022739,2]
[367141371,1750668871028,-460.0,0.00022739,2]
[367141372,1750668871055,-460.0,0.00022739,2]
[367141373,1750668871081,-460.0,0.00022739,2]
[367141374,1750668871108,-460.0,0.00022739,2]
[367141375,1750668871133,-460.0,0.00022739,2]
[367141376,1750668871159,-460.0,0.00022739,2]
[367141377,1750668871185,-460.0,0.00022739,2]
[367141378,1750668871210,-492.05,0.00022739,2]
[367141379,1750668871236,-761.39,0.00022739,2]
[367141380,1750668871265,-761.39,0.00022739,2]
[367141381,1750668871292,-460.0,0.00022739,2]
[367141382,1750668871317,-460.0,0.00022739,2]
[367141383,1750668871345,-460.0,0.00022739,2]
[367141384,1750668871372,-460.0,0.00022739,2]
[367141385,1750668871398,-460.0,0.00022739,2]
[367141386,1750668871425,-460.0,0.00022739,2]
[367141387,1750668871454,-460.0,0.00022739,2]
[367141388,1750668871482,-460.0,0.00022739,2]
[367141389,1750668871510,-593.13,0.00022739,2]
[367141390,1750668871542,-665.94,0.00022739,2]
[367141391,1750668871570,-848.27,0.00022739,2]
[367141392,1750668871597,-460.0,0.00022739,2]
[367141393,1750668871625,-492.98,0.00022739,2]
[367141394,1750668871652,-482.77,0.00022739,2]
[367141395,1750668871681,-460.0,0.00022739,2]
[367141396,1750668871708,-464.61,0.00022739,2]
[367141397,1750668871736,-934.42,0.00022739,2]
[367141398,1750668871763,-460.0,0.00022739,2]
[367141399,1750668871789,-460.0,0.00022739,2]
[367141400,1750668871815,-695.7,0.00022739,2]
[367141401,1750668871845,-460.0,0.00022739,2]
[367141402,1750668871871,-599.62163273,0.00022739,2]
[367141403,1750668871897,-460.0,0.00022739,2]
[367141404,1750668871926,-708.57,0.00022739,2]
[367141405,1750668871954,-460.0,0.00022739,2]
[367141406,1750668871981,-460.0,0.00022739,2]
[367141407,1750668872008,-460.0,0.00022739,2]
[367141408,1750668872037,-460.0,0.00022739,2]
[367141409,1750668872064,-460.0,0.00022739,2]
[367141410,1750668872091,-460.0,0.00022739,2]
[367141411,1750668872117,-460.0,0.00022739,2]
[367141412,1750668872144,-460.0,0.00022739,2]
[367141413,1750668872170,-460.0,0.00022739,2]
[367141414,1750668872196,-460.0,0.00022739,2]
[367141415,1750668872222,-442.20125191,0.00022739,2]
[367141416,1750668872248,-460.0,0.00022739,2]
[367141417,1750668872273,-460.0,0.00022739,2]
[367141418,1750668872299,-460.0,0.00022739,2]
[367141419,1750668872324,-3686.23,0.00022739,2]
[367141420,1750668872351,-460.0,0.00022739,2]
[367141421,1750668872377,-460.0,0.00022739,2]
[367141422,1750668872404,-460.0,0.00022739,2]
[367141423,1750668872430,-460.0,0.00022739,2]
[367141424,1750668872457,-539.04,0.00022739,2]
[367141425,1750668872485,-460.0,0.00022739,2]
[367141426,1750668872513,-460.0,0.00022739,2]
[367141427,1750668872539,-460.0,0.00022739,2]
[367141428,1750668872566,-460.0,0.00022739,2]
[367141429,1750668872593,-1020.25,0.00022739,2]
[367141430,1750668872774,-1295.91,0.00022739,2]
[367141431,1750668872804,-460.0,0.00022739,2]
[367141432,1750668872831,-717.54,0.00022739,2]
[367141433,1750668872862,-999.86,0.00022739,2]
[367141434,1750668872889,-544.8,0.00022739,2]
[367141435,1750668872917,-460.0,0.00022739,2]
[367141436,1750668872944,-460.0,0.00022739,2]
[367141437,1750668872970,-460.0,0.00022739,2]
[367141438,1750668872996,-572.94,0.00022739,2]
[367141439,1750668873023,-460.0,0.00022739,2]
[367141440,1750668873051,-460.0,0.00022739,2]
[367141441,1750668873078,-460.0,0.00022739,2]
[367141442,1750668873106,-1054.25,0.00022739,2]
[367141443,1750668873133,-460.0,0.00022739,2]
[367141444,1750668873161,-460.0,0.00022739,2]
[367141445,1750668873188,-460.0,0.00022739,2]
[367141446,1750668873216,-460.0,0.00022739,2]
[367141447,1750668873243,-460.0,0.00022739,2]
[367141448,1750668873275,-598.98,0.00022739,2]
[367141449,1750668873302,-460.0,0.00022739,2]
[367141450,1750668873329,-860.41,0.00022739,2]
[367141451,1750668873355,-460.0,0.00022739,2]
[367141452,1750668873383,-460.0,0.00022739,2]
[367141453,1750668873411,-551.12,0.00022739,2]
[367141454,1750668873437,-460.0,0.00022739,2]
[367141455,1750668873465,-460.0,0.00022739,2]
[367141456,1750668873493,-460.0,0.00022739,2]
[367141457,1750668873522,-468.40628456,0.00022739,2]
[367141458,1750668873551,-527.1,0.00022739,2]
[367141459,1750668873579,-460.0,0.00022739,2]
[367141460,1750668873607,-460.0,0.00022739,2]
[367141461,1750668873636,-460.0,0.00022739,2]
[367141462,1750668873665,-461.24,0.00022739,2]
[367141463,1750668873694,-460.0,0.00022739,2]
[367141464,1750668873723,-460.0,0.00022739,2]
[367141465,1750668873752,-460.0,0.00022739,2]
[367141466,1750668873781,-460.0,0.00022739,2]
[367141467,1750668873809,-497.56,0.00022739,2]
[367141468,1750668873837,-477.04,0.00022739,2]
[367141469,1750668873870,-460.0,0.00022739,2]
[367141470,1750668873901,-460.0,0.00022739,2]
[367141471,1750668873931,-460.0,0.00022739,2]
[367141472,1750668873958,-460.0,0.00022739,2]
[367141473,1750668873986,-929.14,0.00022739,2]
[367141474,1750668874016,-1851.05,0.00022739,2]
[367141475,1750668874043,-460.0,0.00022739,2]
[367141476,1750668874069,-902.17,0.00022739,2]
[367141477,1750668874096,-797.37,0.00022739,2]
[367141478,1750668874124,-353.91445612,0.00022739,2]
[367141479,1750668874152,-1034.76,0.00022739,2]
[367141480,1750668874179,-460.0,0.00022739,2]
[367141481,1750668874207,-460.0,0.00022739,2]
[367141482,1750668874234,-460.0,0.00022739,2]
[367141483,1750668874261,-460.0,0.00022739,2]
[367141484,1750668874289,-1225.47,0.00022739,2]
[367141485,1750668874316,-460.0,0.00022739,2]
[367141486,1750668874342,-460.0,0.00022739,2]
[367141487,1750668874368,-1021.16,0.00022739,2]
[367141488,1750668874395,-460.0,0.00022739,2]
[367141489,1750668874421,-460.0,0.00022739,2]
[367141490,1750668874447,-460.0,0.00022739,2]
[367141491,1750668874475,-460.0,0.00022739,2]
[367141492,1750668874504,-460.0,0.00022739,2]
[367141493,1750668874531,-233.13326163,0.00022739,2]
[367141494,1750668874561,-460.0,0.00022739,2]
[367141495,1750668874590,-460.0,0.00022739,2]
[367141496,1750668874618,-460.0,0.00022739,2]
[367141497,1750668874647,-460.0,0.00022739,2]
[367141498,1750668874676,-460.0,0.00022739,2]
[367141499,1750668874705,-460.0,0.00022739,2]
[367141500,1750668874732,-772.79,0.00022739,2]
[367141501,1750668874759,-777.6,0.00022739,2]
[367141502,1750668874786,-460.0,0.00022739,2]
[367141503,1750668874813,-851.87,0.00022739,2]
[367141504,1750668874841,-460.0,0.00022739,2]
[367141505,1750668874869,-511.17,0.00022739,2]
[367141506,1750668874897,-516.66,0.00022739,2]
[367141507,1750668874931,-460.0,0.00022739,2]
[367141508,1750668874966,-2232.98,0.00022739,2]
[367141509,1750668874998,-532.41,0.00022739,2]
[367141510,1750668875031,-446.66811015,0.00022739,2]
[367141511,1750668875065,-460.0,0.00022739,2]
[367141512,1750668875097,-805.5,0.00022739,2]
[367141513,1750668875130,-469.39,0.00022739,2]
[367141514,1750668875168,-460.0,0.00022739,2]